Cogmind - Beta 16 @@@ ROGUE MODE // 2025.11.11 @ 06:34:55 Player: shapeshifter Result: Self-destructed Performance ------------- Evolutions (3) 1500 Regions Visited (6) 1200 Robots Destroyed (0) 0 Value Destroyed (0) 0 Prototype IDs (0) 0 Alien Tech Used (0) 0 Bonus (1534) 1534 TOTAL SCORE: 4234 Bonus ------- Pacifist 834 Entered Garrisons 200 Entered DSFs 500 Cogmind --------- Core Integrity 328/700 Matter 163/300 Energy 98/100 System Corruption 0% Temperature Cool (0) Movement Core (50) Location -7/Garrison Parts ------- > --- POWER (1) -------- (None) > --- PROPULSION (6) --- (None) > --- UTILITY (4) ------ Machine Analyzer > --- WEAPON (2) ------- Hammer > --- INVENTORY (5) ---- Nuclear Core Machine Analyzer Peak State ------------ > --- POWER ------------ Nuclear Core > --- PROPULSION ------- Flight Unit Flight Unit Flight Unit Flight Unit Flight Unit > --- UTILITY ---------- Machine Analyzer Seismic Detector Improved Light Armor Plating > --- WEAPON ----------- Hammer > --- INVENTORY -------- Nuclear Core Nuclear Core Machine Analyzer Improved Light Armor Plating Hammer [Rating: 17] Favorites ----------- Power Nuclear Core Engine Light Ion Engine Power Core Nuclear Core Propulsion Flight Unit Flight Unit Flight Unit Utility Seismic Detector Device Seismic Detector Processor Machine Analyzer Protection Improved Light Armor Plating Weapon Hammer Impact Weapon Hammer Build | -11 -10 -9 -8 -7 -7 -7 ------- Run | Yrd Mat Mat Mat Fac DSF Gar Slots Evolved 6 | . . 2 2 2 . . Power . | . . . . . . . Propulsion 4 | . . 2 2 . . . Utility 2 | . . . . 2 . . Weapon . | . . . . . . . Parts Attached 15 | . 4 4 3 . 3 1 Power 3 | . 1 1 . . 1 . Engine 1 | . 1 . . . . . Core 2 | . . 1 . . 1 . Reactor . | . . . . . . . Propulsion 6 | . 2 2 2 . . . Treads . | . . . . . . . Leg . | . . . . . . . Wheel . | . . . . . . . Hover . | . . . . . . . Flight 6 | . 2 2 2 . . . Utility 4 | . 1 1 . . 1 1 Device 1 | . 1 . . . . . Storage . | . . . . . . . Processor 1 | . . . . . 1 . Hackware . | . . . . . . . Protection 2 | . . 1 . . . 1 Artifact . | . . . . . . . Weapon 2 | . . . 1 . 1 . Energy Gun . | . . . . . . . Energy Cannon . | . . . . . . . Ballistic Gun . | . . . . . . . Ballistic Cannon . | . . . . . . . Launcher . | . . . . . . . Special Weapon . | . . . . . . . Impact Weapon 2 | . . . 1 . 1 . Slashing Weapon . | . . . . . . . Piercing Weapon . | . . . . . . . Special Melee Weapon . | . . . . . . . Unidentified Prototypes . | . . . . . . . Parts Lost 9 | . . . 1 . . 8 Power . | . . . . . . . Propulsion 6 | . . . 1 . . 5 Utility 2 | . . . . . . 2 Weapon 1 | . . . . . . 1 Highest Loss Streak 8 | . . . 1 . . 8 To Critical Strikes . | . . . . . . . Average Backups 3 | 1 4 3 3 4 3 2 Power 1 | 1 1 1 2 2 1 1 Propulsion . | . 2 2 . . . . Utility . | . . . 1 1 1 1 Weapon . | . . . . 1 . . Tool/Special . | . . . . . . . Unused Backups 3 | . . 1 . . . 2 Power 2 | . . 1 . . . 1 Propulsion . | . . . . . . . Utility 1 | . . . . . . 1 Weapon . | . . . . . . . Tool/Special . | . . . . . . . Average Slot Usage (%) 60 | . 37 66 82 69 74 59 Engine 3 | . 7 9 . . . . Core 3 | . . 1 9 7 7 3 Flight 32 | . 18 42 52 38 38 24 Device 7 | . 10 11 9 7 7 3 Processor 2 | . . . . . 2 7 Protection 3 | . . 1 9 7 7 4 Impact Weapon 5 | . . . 3 7 9 14 Peak Build Rating 17 | . 4 12 15 14 17 17 Average Rating 9 | . 3 6 13 14 16 12 On Entrance 8 | . . 4 12 14 14 17 Avg Prop Armor Cover (%) 5 | . . . 5 . . . Naked Turns 4 | . 4 . . . . . Heaviest Build 15 | . 4 11 13 13 15 15 Greatest Support 30 | 3 8 16 30 25 25 25 Greatest Overweight (x) 1 | . . . . . . 1 Average Overweight (x) . | . . . . . . . Largest Inventory Capacity 5 | 5 5 5 5 5 5 5 Average Capacity 5 | 5 5 5 5 5 5 5 Most Carried 5 | 2 5 5 5 4 5 3 Average Carried 3 | 1 4 3 3 4 3 2 Final Capacity 5 | 5 5 5 5 5 5 5 Final Carried 5 | 2 5 5 4 4 3 2 Class Distribution -------------------- 58% | Sprinter 41% | Mutant Dominant Class ---------------- Mutant | -10/Materials Sprinter | -9/Materials Sprinter | -8/Materials Sprinter | -7/Factory Sprinter | -7/DSF Mutant | -7/Garrison Resources | -11 -10 -9 -8 -7 -7 -7 ----------- Run | Yrd Mat Mat Mat Fac DSF Gar Matter Collected 168 | 168 . . . . . . Remotely . | . . . . . . . Salvage Created . | . . . . . . . Parts . | . . . . . . . Haulers Intercepted . | . . . . . . . Recyclers Shooed . | . . . . . . . Parts Field Recycled . | . . . . . . . Retrieved Matter . | . . . . . . . Parts Self-Destructed . | . . . . . . . Prevented . | . . . . . . . Parts Restored . | . . . . . . . Kills | -11 -10 -9 -8 -7 -7 -7 ------- Run | Yrd Mat Mat Mat Fac DSF Gar Combat Hostiles Destroyed . | . . . . . . . Classes Destroyed . | . . . . . . . Best Kill Streak . | . . . . . . . Combat Bots Only . | . . . . . . . Max Kills in Single Turn . | . . . . . . . Gunslinging . | . . . . . . . Exploded . | . . . . . . . Melee . | . . . . . . . Uniques/NPCs Destroyed . | . . . . . . . Combat | -11 -10 -9 -8 -7 -7 -7 -------- Run | Yrd Mat Mat Mat Fac DSF Gar Hostile Shots Fired 178 | . 3 7 8 . 17 143 Missed 75 | . 2 5 5 . 10 53 Hits 103 | . 1 2 3 . 7 90 Projectile 103 | . 1 2 3 . 7 90 Damage Taken 1188 | . 31 32 49 . 135 941 Core 421 | . 17 15 17 . 23 349 Absorbed by Shields 161 | . . . . . 4 157 Core Remaining (%) 96 | 100 93 96 96 . . . Volleys Fired . | . . . . . . . Largest . | . . . . . . . Hottest . | . . . . . . . Shots Fired . | . . . . . . . Gun . | . . . . . . . Cannon . | . . . . . . . Launcher . | . . . . . . . Special . | . . . . . . . Kinetic . | . . . . . . . Thermal . | . . . . . . . Explosive . | . . . . . . . Electromagnetic . | . . . . . . . Robot Hit Streak . | . . . . . . . Robot Miss Streak . | . . . . . . . Penetration Max . | . . . . . . . Secondary Targets . | . . . . . . . Shots Hit Robots . | . . . . . . . Core Hits . | . . . . . . . Critical Kills . | . . . . . . . Critical Parts Destroyed . | . . . . . . . Critical Strikes . | . . . . . . . Melee Attacks . | . . . . . . . Impact . | . . . . . . . Slashing . | . . . . . . . Piercing . | . . . . . . . Sneak Attacks . | . . . . . . . Combat Hostiles . | . . . . . . . Follow-up Attacks . | . . . . . . . Damage Inflicted . | . . . . . . . Guns . | . . . . . . . Cannons . | . . . . . . . Explosions . | . . . . . . . Melee . | . . . . . . . Ramming . | . . . . . . . Kinetic . | . . . . . . . Thermal . | . . . . . . . Explosive . | . . . . . . . Electromagnetic . | . . . . . . . Impact . | . . . . . . . Slashing . | . . . . . . . Piercing . | . . . . . . . Highest Corruption . | . . . . . . . Average Corruption . | . . . . . . . Corruption Purged . | . . . . . . . Corruption Blocked . | . . . . . . . Overload Shots . | . . . . . . . Overflow Damage . | . . . . . . . Projectiles . | . . . . . . . Explosions . | . . . . . . . Melee . | . . . . . . . Knockbacks . | . . . . . . . Impact . | . . . . . . . Kinetic . | . . . . . . . Secondary . | . . . . . . . Self-Inflicted Damage . | . . . . . . . Shots . | . . . . . . . Rammed . | . . . . . . . Targets Rammed . | . . . . . . . Kicked . | . . . . . . . Crushed . | . . . . . . . Highest Temperature 226 | . . 2 226 . . 18 Average Temperature 91 | . . 1 120 . . 9 Received Heat Transfer 104 | . . 9 27 . . 68 Effects 1 | . . . 1 . . . Energy Bleed 1 | . . . 1 . . . Siege Activations . | . . . . . . . Martial Activations . | . . . . . . . Shielding Activations . | . . . . . . . Robots Disrupted . | . . . . . . . Combat Hostiles . | . . . . . . . Robots Corrupted . | . . . . . . . Combat Hostiles . | . . . . . . . Parts Fried . | . . . . . . . Impact Corruptions . | . . . . . . . Robots Melted . | . . . . . . . Combat Hostiles . | . . . . . . . Parts Melted . | . . . . . . . Heat Transferred . | . . . . . . . Parts Sabotaged . | . . . . . . . Parts Stolen . | . . . . . . . Parts Stripped . | . . . . . . . Power Chain Reactions . | . . . . . . . Alert | -11 -10 -9 -8 -7 -7 -7 ------- Run | Yrd Mat Mat Mat Fac DSF Gar Maximum Alert Level . | . . . . . . . Low Security (%) 100 | 100 100 100 100 100 100 100 Level 1 . | . . . . . . . Level 2 . | . . . . . . . Level 3 . | . . . . . . . Level 4 . | . . . . . . . Level 5 . | . . . . . . . High Security . | . . . . . . . Max Security . | . . . . . . . Peak Influence 79 | . 35 45 48 16 26 79 Initial 19 | . . 14 18 16 11 19 Average 23 | . 6 10 23 16 12 48 Influence Increases 275 | . 45 45 50 . 15 120 Successful Hack 20 | . . . 20 . . . Partial Spotted 30 | . 30 . . . . . Lose Combat Pursuer 225 | . 15 45 30 . 15 120 Influence Decreases 216 | . 10 35 57 22 5 87 Entered New Map 82 | . . 21 27 22 5 7 Time Decay 44 | . 10 14 20 . . . Lost Part 90 | . . . 10 . . 80 Squads Dispatched 1 | . . . 1 . . . Investigation . | . . . . . . . Extermination . | . . . . . . . Reinforcement 1 | . . . 1 . . . Assault . | . . . . . . . Garrison . | . . . . . . . Intercept . | . . . . . . . Searches Triggered . | . . . . . . . Construction Impeded . | . . . . . . . Haulers Reinforced . | . . . . . . . Active Scanning Responses . | . . . . . . . Cargo Convoy Interrupts . | . . . . . . . Stealth | -11 -10 -9 -8 -7 -7 -7 --------- Run | Yrd Mat Mat Mat Fac DSF Gar Distress Signals 2 | . . 1 1 . . . Communications Jammed . | . . . . . . . Distress Signals . | . . . . . . . Times Spotted 36 | . 5 10 7 . 2 12 Peak Tracking Total 10 | . 7 9 9 . 2 10 Tactical Retreats 6 | . 1 1 1 . 1 2 Traps | -11 -10 -9 -8 -7 -7 -7 ------- Run | Yrd Mat Mat Mat Fac DSF Gar Traps Triggered 7 | . 1 . . . 1 5 Indirectly . | . . . . . . . Trap Hack Attempts . | . . . . . . . Triggered . | . . . . . . . Disarmed . | . . . . . . . Reprogrammed . | . . . . . . . Reused . | . . . . . . . Traps Extracted . | . . . . . . . Installed . | . . . . . . . Triggered . | . . . . . . . Machines | -11 -10 -9 -8 -7 -7 -7 ---------- Run | Yrd Mat Mat Mat Fac DSF Gar Machines Disabled . | . . . . . . . Max in Single Turn . | . . . . . . . Machines Repaired . | . . . . . . . Machines Dismantled . | . . . . . . . Machines Sabotaged . | . . . . . . . Overloaded Fab Kills . | . . . . . . . Hacking | -11 -10 -9 -8 -7 -7 -7 --------- Run | Yrd Mat Mat Mat Fac DSF Gar Machines Accessed 8 | . 2 . 5 1 . . Terminals 7 | . 2 . 4 1 . . Fabricators . | . . . . . . . Repair Stations . | . . . . . . . Recycling Units . | . . . . . . . Scanalyzers 1 | . . . 1 . . . Garrison Access . | . . . . . . . Total Hacks 19 | . 3 . 15 1 . . Successful 10 | . . . 9 1 . . Failed 9 | . 3 . 6 . . . Catastrophic . | . . . . . . . Database Lockouts . | . . . . . . . Manual 11 | . . . 11 . . . Terminals 17 | . 3 . 13 1 . . Fabricators . | . . . . . . . Repair Stations . | . . . . . . . Recycling Units . | . . . . . . . Scanalyzers 2 | . . . 2 . . . Garrison Access . | . . . . . . . Terminal Hacks 5 | . . . 4 1 . . Open DSF 1 | . . . . 1 . . Terminal Index 1 | . . . 1 . . . Zone Layout 3 | . . . 3 . . . Fabricator Hacks . | . . . . . . . Repair Station Hacks . | . . . . . . . Recycling Unit Hacks . | . . . . . . . Scanalyzer 2 | . . . 2 . . . Retrieve Study 2 | . . . 2 . . . Garrison Access Hacks . | . . . . . . . Unauthorized Hacks 3 | . . . 3 . . . Terminals 3 | . . . 3 . . . Skim 3 | . . . 3 . . . Fabricators . | . . . . . . . Repair Stations . | . . . . . . . Recycling Units . | . . . . . . . Scanalyzers . | . . . . . . . Garrison Access . | . . . . . . . Data Cores Recovered . | . . . . . . . Used . | . . . . . . . Hacking Detections 4 | . 2 . 2 . . . Full Trace Events . | . . . . . . . Feedback Events . | . . . . . . . Feedback Blocked . | . . . . . . . Robot Schematics Acquired . | . . . . . . . Robots Built . | . . . . . . . Authchips . | . . . . . . . Time . | . . . . . . . Total Robot Build Rating . | . . . . . . . Part Schematics Acquired . | . . . . . . . Parts Built . | . . . . . . . Authchips . | . . . . . . . Time . | . . . . . . . Total Part Build Rating . | . . . . . . . Part Studies Acquired 2 | . . . 2 . . . Parts Repaired . | . . . . . . . Time . | . . . . . . . Parts Recycled . | . . . . . . . Recycled Matter . | . . . . . . . Retrieved Matter . | . . . . . . . Retrieved Components . | . . . . . . . Parts Scanalyzed . | . . . . . . . Part Schematics Acquired . | . . . . . . . Parts Damaged . | . . . . . . . Bothacking | -11 -10 -9 -8 -7 -7 -7 ------------ Run | Yrd Mat Mat Mat Fac DSF Gar Used RIF Installer . | . . . . . . . Robots Hacked . | . . . . . . . Non-combat . | . . . . . . . Combat . | . . . . . . . Robot Hacks Applied . | . . . . . . . Relay Couplers Released . | . . . . . . . Fabnet Peak Effective % . | . . . . . . . Robots Rewired . | . . . . . . . Allies Hacked . | . . . . . . . Hacks Repelled . | . . . . . . . Allies | -11 -10 -9 -8 -7 -7 -7 -------- Run | Yrd Mat Mat Mat Fac DSF Gar Total Allies . | . . . . . . . Largest Group . | . . . . . . . Highest-Rated Group . | . . . . . . . Highest-Rated Ally . | . . . . . . . Total Orders . | . . . . . . . Ally Attacks . | . . . . . . . Total Damage . | . . . . . . . Kills . | . . . . . . . Allies Corrupted . | . . . . . . . Allies Melted . | . . . . . . . Intel | -11 -10 -9 -8 -7 -7 -7 ------- Run | Yrd Mat Mat Mat Fac DSF Gar Active Infowar (turns) 300 | . 72 48 50 4 24 102 Seismic 243 | . 72 48 50 4 24 45 Machine Analysis 119 | . . . . . 17 102 Robot Analysis Total . | . . . . . . . Derelict Logs Recovered . | . . . . . . . Drone Launches . | . . . . . . . Drone Recoveries . | . . . . . . . Exploration | -11 -10 -9 -8 -7 -7 -7 ------------- Run | Yrd Mat Mat Mat Fac DSF Gar Turns Passed 320 | 16 76 48 50 4 24 102 Spaces Moved 736 | 29 169 126 158 14 37 203 Core 72 | 29 27 . . . . 16 Treads . | . . . . . . . Legs . | . . . . . . . Wheels . | . . . . . . . Hover . | . . . . . . . Flight 664 | . 142 126 158 14 37 187 Fastest Speed 25 | 50 37 31 25 28 28 28 Average Speed 32 | 50 39 31 26 28 28 32 Slowest Speed 120 | 50 50 31 31 28 28 120 Overloaded Moves . | . . . . . . . Propulsion Burnouts . | . . . . . . . Robots Hopped 10 | . 1 1 3 . . 5 Potential Cave-ins . | . . . . . . . Cave-ins Triggered . | . . . . . . . Exploration Rate (%) 24 | 3 42 22 20 1 43 40 Regions Visited 6 Branch Regions . Pre-discovered Areas . | . . . . . . . Known Exits Taken 1 | . . . . 1 . . Unknown Exits Taken 4 | 1 1 1 1 . . . Scrap Searched . | . . . . . . . Spaces Dug . | . . . . . . . Terrain Destroyed . | . . . . . . . Melee . | . . . . . . . Projectile . | . . . . . . . AOE . | . . . . . . . Terrain Rammed . | . . . . . . . Walls Destroyed . | . . . . . . . Machines Disabled . | . . . . . . . Actions | -11 -10 -9 -8 -7 -7 -7 --------- Run | Yrd Mat Mat Mat Fac DSF Gar Total 796 | 30 176 133 162 13 49 233 Wait 3 | . . . 3 . . . Move 709 | 28 166 123 152 13 36 191 Hop 9 | . 1 1 2 . . 5 Pick Up 13 | 2 5 3 2 . 1 . Fast Attach 4 | . 2 1 . . 1 . Attach 9 | . 2 2 3 . 1 1 Detach . | . . . . . . . Swap 2 | . . 1 . . 1 . Drop 5 | . . 2 . . 1 2 Fire . | . . . . . . . Melee . | . . . . . . . Ram . | . . . . . . . Kick . | . . . . . . . Crush . | . . . . . . . Escape Stasis 42 | . . . . . 8 34 Rewire . | . . . . . . . Trap . | . . . . . . . Miscellaneous . | . . . . . . . Route ------- -11/Scrapyard -10/Materials (discovered 2 exits: [*Mat] / [*Min]) -9/Materials -8/Materials (discovered 2 exits: *Fac / [*Sto]) -7/Factory -7/DSF -7/Garrison (discovered 2 exits: [*Fac x2]) History --------- Turn | Location | Event 11 | -11/Scrapyard | Discovered new exit (range 14) 17 | -11/Scrapyard | Entered Materials 76 | -10/Materials | Discovered new exit (range 11) 91 | -10/Materials | Discovered new exit (range 6) 93 | -10/Materials | Entered another Materials area 93 | -9/Materials | Evolved 2 slots: Propulsion x2 127 | -9/Materials | Discovered new exit (range 16) 141 | -9/Materials | Entered another Materials area 141 | -8/Materials | Evolved 2 slots: Propulsion x2 144 | -8/Materials | Discovered new exit (range 11) 188 | -8/Materials | Discovered new exit (range 8) 191 | -8/Materials | Entered Factory 191 | -7/Factory | Evolved 2 slots: Utility x2 195 | -7/Factory | Identified exit to DSF 195 | -7/Factory | Entered DSF 206 | -7/DSF | Discovered new exit (range 13) 215 | -7/DSF | Additional patrols routed to DSF 219 | -7/DSF | Entered Garrison 239 | -7/Garrison | Triggered checkpoint 255 | -7/Garrison | Discovered new exit (range 15) 259 | -7/Garrison | Attempted to access garrison exit controls, blocked by remote lockdown 316 | -7/Garrison | Core integrity fell below 50% 316 | -7/Garrison | Discovered new exit (range 10) 321 | -7/Garrison | Attempted to access garrison exit controls, blocked by remote lockdown 321 | -7/Garrison | Self-destructed Last Messages --------------- 00293_ Field strength at 6. 00294_ Stasis field depleted. 00295_ Dropped Imp. Light Armor Plating. 00305_ Triggered Stasis Trap. 00305_ A bubble of rippling energy engulfs the area. 00305_ Field strength at 94. 00306_ Field strength at 88. 00307_ Field strength at 78. 00308_ Field strength at 68. 00309_ Field strength at 58. 00310_ Field strength at 40. 00310_ Hammer destroyed. 00311_ Field strength at 29. 00312_ Field strength at 23. 00312_ Flight Unit+ destroyed. 00313_ Field strength at 13. 00314_ Stasis field depleted. 00316_ EXIT=FOUND 00321_ Attempting to access garrison exit controls... 00321_ Remote lockdown engaged. Map ----- +----------------------------------------------------+ | ?????????????????????????????????# #? | | ?????????????????????#############++## | | ?????????????????????# | | ?????????????????????# ! | | ?????????????????????# | | ?????????????????????# ############# | | ?????????????????????# #???????????? | | ?????????????????????# #???????????? | | ?????????????????????# #???????????? | | ?????????????????????# #???????????? | | ?????????????????????# #???????????? | | ?????????????????????# #???????????? | | ?????????????????????# #???????????? | | ?????????????????????# #???????????? | | ?????????????????????# #???????????? | | ????????????????#????# #???????????? | | ????????????????# ???# #???????????? | | ????????????????# ### #???????????? | | ????????????????# #???????????? | | ????????????????# #???????????? | | ????????????????##T### #???????????? | | ?????????????????#???# #???????????? | | ?????????????????????# #???????????? | | ??????????############s #???????????? | | ??????????# ss #???????????? | | ??????????# <@ #???????????? | | ??????????# #???????????? | | ??????????################???????????? | | ?????????????????????????????????????? | | ?????????????????????????????????????? | | ?????????????????????????????????????? | | ?????????????????????????????????????? | | ?????????????????????????????????????? | | ?????????????????????????????????????? | | ?????????????????????????????????????? | | ?????????????????????????????????????? | | ?????????????????????????????????????? | | | | | | | | | | | | | | | | | | | | | | | | | | | +----------------------------------------------------+ Best States ------------- Heat Dissipation 34 Energy Generation 16 Energy Capacity 240 Matter Stores 268 Matter Capacity 300 Sight Range 16 Terrain Scan Density 10 Armor Coverage 150 Evasion (%) 64 Item Schematics ----------------- None Robot Schematics ------------------ None Fabricated ------------ Nothing Repaired ---------- Nothing Studied --------- Nuclear Core | -8/Materials | Hacked Flight Unit | -8/Materials | Hacked Alien Tech Used ----------------- None Achievements -------------- None Challenges ------------ None Game ------ Seed CorruptionCompactPlatform Manual? 0 Play Time 00:07:42 Cumulative 488.9 hours Start 2025.11.11 @ 06:28:47 End 2025.11.11 @ 06:34:55 Sessions 1 Manual Loads 0 Difficulty Rogue Special Mode None Game No. 648 Rogue 648 Adventurer 0 Explorer 0 Win Type - Total 15 Types 7/0/2/2/1/0/2/1/0/0 Lore% 90 Gallery% 85 Achievement% 65 Wizard Run 0 Options --------- Layout 0 ASCII 0 Keyboard 0 Movement Mouse Keybinds 0 Fullscreen 1 Font 24/Terminus Map View 76x50 Zoom Use 0% Tactical HUD 1 Map Filters NONE Filters NONE Steam 1 RUN: 42ab3cfb-39c9-4880-a256-0a5cc6c7e047